{"text_format":"3","workbook":"xlsx","n_sheets":4,"sheets":["Сводка","Активы","Обязательства","Категории"],"not_rendered":{"defined_names":9},"read":"whole","date_system":"1900"}

{"sheet":"Сводка","index":0,"n_rows":13,"n_cols":4,"rows_kept":13}
[]
[null,"БАЛАНСОВЫЙ ОТЧЕТ "]
[null,null,{"$f":"\"Финансовый-\"&YEAR(TODAY())-1","v":"Финансовый-2023"},{"$f":"\"Финансовый-\"&YEAR(TODAY())","v":"Финансовый-2024"}]
[null,"ТИП АКТИВА","ПРЕДЫДУЩИЙ ГОД","ТЕКУЩИЙ ГОД"]
[null,"Текущие активы",{"$f":"SUMIFS(Активы[ПРЕДЫДУЩИЙ ГОД],Активы[ТИП АКТИВА],Информационная_панель[[#This Row],[ТИП АКТИВА]])+SUMIFS(Обязательства[ПРЕДЫДУЩИЙ ГОД],Обязательства[ТИП ОБЯЗАТЕЛЬСТВА],Информационная_панель[[#This Row],[ТИП АКТИВА]])","v":600},{"$f":"SUMIFS(Активы[ТЕКУЩИЙ ГОД],Активы[ТИП АКТИВА],Информационная_панель[[#This Row],[ТИП АКТИВА]])+SUMIFS(Обязательства[ТЕКУЩИЙ ГОД],Обязательства[ТИП ОБЯЗАТЕЛЬСТВА],Информационная_панель[[#This Row],[ТИП АКТИВА]])","v":600}]
[null,"Основные средства",{"$f":"SUMIFS(Активы[ПРЕДЫДУЩИЙ ГОД],Активы[ТИП АКТИВА],Информационная_панель[[#This Row],[ТИП АКТИВА]])+SUMIFS(Обязательства[ПРЕДЫДУЩИЙ ГОД],Обязательства[ТИП ОБЯЗАТЕЛЬСТВА],Информационная_панель[[#This Row],[ТИП АКТИВА]])","v":{"v":-100,"d":"-100 "}},{"$f":"SUMIFS(Активы[ТЕКУЩИЙ ГОД],Активы[ТИП АКТИВА],Информационная_панель[[#This Row],[ТИП АКТИВА]])+SUMIFS(Обязательства[ТЕКУЩИЙ ГОД],Обязательства[ТИП ОБЯЗАТЕЛЬСТВА],Информационная_панель[[#This Row],[ТИП АКТИВА]])","v":{"v":-85,"d":"-85 "}}]
[null,"Другие активы",{"$f":"SUMIFS(Активы[ПРЕДЫДУЩИЙ ГОД],Активы[ТИП АКТИВА],Информационная_панель[[#This Row],[ТИП АКТИВА]])+SUMIFS(Обязательства[ПРЕДЫДУЩИЙ ГОД],Обязательства[ТИП ОБЯЗАТЕЛЬСТВА],Информационная_панель[[#This Row],[ТИП АКТИВА]])","v":0},{"$f":"SUMIFS(Активы[ТЕКУЩИЙ ГОД],Активы[ТИП АКТИВА],Информационная_панель[[#This Row],[ТИП АКТИВА]])+SUMIFS(Обязательства[ТЕКУЩИЙ ГОД],Обязательства[ТИП ОБЯЗАТЕЛЬСТВА],Информационная_панель[[#This Row],[ТИП АКТИВА]])","v":0}]
[null,"Текущие обязательства",{"$f":"SUMIFS(Активы[ПРЕДЫДУЩИЙ ГОД],Активы[ТИП АКТИВА],Информационная_панель[[#This Row],[ТИП АКТИВА]])+SUMIFS(Обязательства[ПРЕДЫДУЩИЙ ГОД],Обязательства[ТИП ОБЯЗАТЕЛЬСТВА],Информационная_панель[[#This Row],[ТИП АКТИВА]])","v":500},{"$f":"SUMIFS(Активы[ТЕКУЩИЙ ГОД],Активы[ТИП АКТИВА],Информационная_панель[[#This Row],[ТИП АКТИВА]])+SUMIFS(Обязательства[ТЕКУЩИЙ ГОД],Обязательства[ТИП ОБЯЗАТЕЛЬСТВА],Информационная_панель[[#This Row],[ТИП АКТИВА]])","v":350}]
[null,"Долгосрочные обязательства",{"$f":"SUMIFS(Активы[ПРЕДЫДУЩИЙ ГОД],Активы[ТИП АКТИВА],Информационная_панель[[#This Row],[ТИП АКТИВА]])+SUMIFS(Обязательства[ПРЕДЫДУЩИЙ ГОД],Обязательства[ТИП ОБЯЗАТЕЛЬСТВА],Информационная_панель[[#This Row],[ТИП АКТИВА]])","v":0},{"$f":"SUMIFS(Активы[ТЕКУЩИЙ ГОД],Активы[ТИП АКТИВА],Информационная_панель[[#This Row],[ТИП АКТИВА]])+SUMIFS(Обязательства[ТЕКУЩИЙ ГОД],Обязательства[ТИП ОБЯЗАТЕЛЬСТВА],Информационная_панель[[#This Row],[ТИП АКТИВА]])","v":0}]
[null,"Собственный акционерный капитал",{"$f":"SUMIFS(Активы[ПРЕДЫДУЩИЙ ГОД],Активы[ТИП АКТИВА],Информационная_панель[[#This Row],[ТИП АКТИВА]])+SUMIFS(Обязательства[ПРЕДЫДУЩИЙ ГОД],Обязательства[ТИП ОБЯЗАТЕЛЬСТВА],Информационная_панель[[#This Row],[ТИП АКТИВА]])","v":0},{"$f":"SUMIFS(Активы[ТЕКУЩИЙ ГОД],Активы[ТИП АКТИВА],Информационная_панель[[#This Row],[ТИП АКТИВА]])+SUMIFS(Обязательства[ТЕКУЩИЙ ГОД],Обязательства[ТИП ОБЯЗАТЕЛЬСТВА],Информационная_панель[[#This Row],[ТИП АКТИВА]])","v":350}]
[null,"ВСЕГО АКТИВОВ",{"$f":"Активы[[#Totals],[ПРЕДЫДУЩИЙ ГОД]]","v":500},{"$f":"Активы[[#Totals],[ТЕКУЩИЙ ГОД]]","v":515}]
[null,"ОБЩАЯ СУММА ОБЯЗАТЕЛЬСТВ И ОБЩИЙ АКЦИОНЕРНЫЙ КАПИТАЛ",{"$f":"Обязательства[[#Totals],[ПРЕДЫДУЩИЙ ГОД]]","v":500},{"$f":"Обязательства[[#Totals],[ТЕКУЩИЙ ГОД]]","v":700}]
[null,"ОСТАТОК",{"$f":"C11-C12","v":0},{"$f":"D11-D12","v":{"v":-185,"d":"-185 "}}]

{"sheet":"Активы","index":1,"n_rows":15,"n_cols":5,"rows_kept":15}
[]
[null,"АКТИВЫ"]
[{"$nulls":3},{"$f":"ФИНАНСОВЫЙ_ГОД","v":"Финансовый-2023"},{"$f":"ФИНАНСОВЫЙ_ГОД_2","v":"Финансовый-2024"}]
[null,"ТИП АКТИВА","ОПИСАНИЕ","ПРЕДЫДУЩИЙ ГОД","ТЕКУЩИЙ ГОД"]
[null,"Текущие активы","Наличные",600,600]
[null,"Текущие активы","Инвестиции"]
[null,"Текущие активы","Запасы"]
[null,"Текущие активы","Дебиторская задолженность"]
[null,"Текущие активы","Авансированные средства"]
[null,"Основные средства","Недвижимость и оборудование"]
[null,"Основные средства","Улучшение арендованной собственности"]
[null,"Основные средства","Акции и другие инвестиции"]
[null,"Основные средства","За вычетом накопленной амортизации (отрицательное значение)",{"v":-100,"d":"-100 "},{"v":-85,"d":"-85 "}]
[null,"Другие активы","Благотворительные взносы"]
[null,"ВСЕГО АКТИВОВ",null,{"$f":"SUBTOTAL(109,Активы[ПРЕДЫДУЩИЙ ГОД])","v":500},{"$f":"SUBTOTAL(109,Активы[ТЕКУЩИЙ ГОД])","v":515}]

{"sheet":"Обязательства","index":2,"n_rows":13,"n_cols":5,"rows_kept":13}
[]
[null,"ОБЯЗАТЕЛЬСТВА"]
[{"$nulls":3},{"$f":"ФИНАНСОВЫЙ_ГОД","v":"Финансовый-2023"},{"$f":"ФИНАНСОВЫЙ_ГОД_2","v":"Финансовый-2024"}]
[null,"ТИП ОБЯЗАТЕЛЬСТВА","ОПИСАНИЕ","ПРЕДЫДУЩИЙ ГОД","ТЕКУЩИЙ ГОД"]
[null,"Текущие обязательства","Кредиторская задолженность",null,350]
[null,"Текущие обязательства","Начисленная заработная плата"]
[null,"Текущие обязательства","Задолженность по заработной плате",500]
[null,"Текущие обязательства","Налоги к оплате"]
[null,"Текущие обязательства","Доходы будущих периодов"]
[null,"Долгосрочные обязательства","Ипотека, подлежащая погашению"]
[null,"Собственный акционерный капитал","Инвестиционный капитал",null,350]
[null,"Собственный акционерный капитал","Накопленная нераспределенная прибыль"]
[null,"ОБЩАЯ СУММА ОБЯЗАТЕЛЬСТВ И ОБЩИЙ АКЦИОНЕРНЫЙ КАПИТАЛ",null,{"$f":"SUBTOTAL(109,Обязательства[ПРЕДЫДУЩИЙ ГОД])","v":500},{"$f":"SUBTOTAL(109,Обязательства[ТЕКУЩИЙ ГОД])","v":700}]

{"sheet":"Категории","index":3,"n_rows":10,"n_cols":2,"rows_kept":10}
[]
[null,"КАТЕГОРИИ"]
[]
[null,"КАТЕГОРИИ"]
[null,"Текущие активы"]
[null,"Основные средства"]
[null,"Другие активы"]
[null,"Текущие обязательства"]
[null,"Долгосрочные обязательства"]
[null,"Собственный акционерный капитал"]